Cogmind - Beta 15 @@@ ROGUE MODE // 2025.05.17 @ 06:55:23 Player: Cereal Killer Result: Destroyed self with Supercharged Sigix Terminator Performance ------------- Evolutions (8) 4000 Regions Visited (25) 5000 Robots Destroyed (307) 1535 Value Destroyed (19372) 19372 Prototype IDs (67) 1340 Alien Tech Used (13) 2600 Bonus (15965) 15965 TOTAL SCORE: 49812 Bonus ------- Triggered Max Security 1000 High Alert Combat Kills 3568 Follower Combat Kills 2122 Entered Garrisons 600 Met Data Miner 300 Acquired ECA 300 Met Warlord at Base 500 MAIN.C Attacked Warlord 500 Warlord Defense Kills 1140 Met Warlord at Research 2000 Scanned by Researcher 500 Pursued by Intercept 500 Met Sigix 2000 Activated Exoskeleton 3000 Friendly Fire -2065 Cogmind --------- Core Integrity 0/1450 Matter 46/550 Energy 95/100 System Corruption 32% Temperature Cool (0) Movement Core (50) Location -2/Section 7 Parts ------- > --- POWER (2) -------- (None) > --- PROPULSION (6) --- (None) > --- UTILITY (11) ----- Experimental Targeting Computer Experimental Core Analyzer Experimental Core Analyzer Improved Armor Integrity Analyzer > --- WEAPON (4) ------- (None) > --- INVENTORY (5) ---- (None) Peak State ------------ > --- POWER ------------ Reinforced Quantum Reactor Improved Quantum Reactor > --- PROPULSION ------- Biometal Heavy Treads Biometal Heavy Treads Advanced Heavy Siege Treads > --- UTILITY ---------- Experimental Power Amplifier Advanced Cryofiber Web Advanced Cooling System Huge Storage Unit Advanced Target Analyzer Improved Armor Integrity Analyzer Centrium Heavy Armor Plating Phase Armor Experimental Thermal Defense Suite > --- WEAPON ----------- Enhanced Quantum Rifle Enhanced Quantum Rifle Heavy Neutron Cannon Heavy Neutron Cannon > --- INVENTORY -------- Particle Reactor Light Quantum Reactor Spiked Heavy Treads Advanced Cooling System Experimental Coolant Injector Matter Compressor Advanced Kinecellerator Advanced Phase Shifter Advanced Force Field Transdimensional Reconstructor Transdimensional Reconstructor Subatomic Replicator Smartbomb Launcher Point Singularity Launcher Sigix Terminator Core Stripper Sigix Broadsword Plasma Lance Sigix Containment Pod [Rating: 224] Favorites ----------- Power Improved Ion Engine Engine Improved Ion Engine Power Core Micro Fission Core Reactor Improved Quantum Reactor Propulsion Wheel Treads Biometal Heavy Treads Leg Myomer Leg Wheel Wheel Hover Unit Improved Antigrav System Flight Unit Diametric Drive Utility Advanced Heat Sink Device Advanced Heat Sink Storage Huge Storage Unit Processor Core Analyzer Hackware Hacking Suite Protection Layered Medium Armor Plating Artifact Spacefold Activator Weapon Antimatter Cannon Energy Gun Enhanced Quantum Rifle Energy Cannon Matter Neutralizer Ballistic Gun Gauss Rifle Ballistic Cannon Antimatter Cannon Launcher Smartbomb Launcher Special Weapon Stasis Projector Impact Weapon Flail Slashing Weapon Makeshift Sword Piercing Weapon Lance Build | -11 -10 -10 -10 -9 -8 -8 -8 -8 -7 -7 -7 -6 -6 -6 -5 -5 -5 -5 -4 -4 -4 -3 -2 -2 -2 ------- Run | Yrd Mat Min Exi Min Mat Gar Mat Gar Fac Low Dat Pro Fac Gar Fac Upp Upp War Pro Fac Upp Res Res Qua Sec Slots Evolved 16 | . . . . . 4 . . . 2 . . . 2 . 2 . . . . 2 . 2 2 . . Power 1 | . . . . . . . . . . . . . . . 1 . . . . . . . . . . Propulsion 4 | . . . . . . . . . . . . . . . . . . . . 2 . 2 . . . Utility 9 | . . . . . 3 . . . 2 . . . 2 . . . . . . . . . 2 . . Weapon 2 | . . . . . 1 . . . . . . . . . 1 . . . . . . . . . . Parts Attached 274 | 6 1 . 1 1 4 6 3 3 6 4 4 . 48 6 18 10 4 19 2 23 8 25 31 22 19 Power 25 | 1 . . . . . 1 . . . . 1 . 5 . 4 1 . 1 . 3 . 2 3 2 1 Engine 9 | 1 . . . . . 1 . . . . 1 . 3 . 2 . . . . 1 . . . . . Core 4 | . . . . . . . . . . . . . 1 . . 1 . . . 2 . . . . . Reactor 12 | . . . . . . . . . . . . . 1 . 2 . . 1 . . . 2 3 2 1 Propulsion 64 | 2 . . . . . . . 1 1 . 1 . 11 2 4 . 1 5 . 9 4 11 5 3 4 Treads 11 | . . . . . . . . . . . . . 1 . . . . . . 1 . . 5 3 1 Leg 10 | . . . . . . . . . . . . . . . . . . 1 . . 4 3 . . 2 Wheel 26 | 2 . . . . . . . 1 1 . 1 . 10 2 4 . 1 2 . . . 2 . . . Hover 8 | . . . . . . . . . . . . . . . . . . 1 . 6 . 1 . . . Flight 9 | . . . . . . . . . . . . . . . . . . 1 . 2 . 5 . . 1 Utility 104 | 1 1 . 1 . 2 3 . 1 3 3 1 . 17 1 7 7 2 8 1 6 . 7 15 7 10 Device 56 | . . . . . 1 2 . . 1 2 . . 10 . 3 6 2 4 . 3 . 5 8 5 4 Storage 7 | 1 . . 1 . . . . . . . . . 1 . . . . . . . . 2 2 . . Processor 19 | . . . . . . . . . 1 1 . . 3 1 . . . 3 1 2 . . 2 . 5 Hackware 4 | . . . . . . . . 1 . . . . . . . . . 1 . 1 . . 1 . . Protection 16 | . 1 . . . 1 1 . . 1 . 1 . 3 . 4 1 . . . . . . 2 1 . Artifact 2 | . . . . . . . . . . . . . . . . . . . . . . . . 1 1 Weapon 81 | 2 . . . 1 2 2 3 1 2 1 1 . 15 3 3 2 1 5 1 5 4 5 8 10 4 Energy Gun 14 | 1 . . . . . 1 . . . . 1 . 1 1 . . . 2 . 2 . 2 1 2 . Energy Cannon 11 | . . . . . . . . . . . . . 2 . . 2 . 1 . . . 1 1 4 . Ballistic Gun 25 | 1 . . . . 2 1 3 . . 1 . . 8 . . . . 1 . 1 4 . 1 . 2 Ballistic Cannon 12 | . . . . . . . . 1 . . . . 3 2 3 . . . . 1 . . 1 . 1 Launcher 10 | . . . . . . . . . 2 . . . . . . . . 1 . . . 1 4 1 1 Special Weapon 2 | . . . . . . . . . . . . . . . . . 1 . . . . . . 1 . Impact Weapon 2 | . . . . . . . . . . . . . . . . . . . 1 . . . . 1 . Slashing Weapon 4 | . . . . 1 . . . . . . . . 1 . . . . . . 1 . . . 1 . Piercing Weapon 1 | . . . . . . . . . . . . . . . . . . . . . . 1 . . . Special Melee Weapon . | . . . . . . . . . . . . . . . . . . . . . . . . . . Unidentified Prototypes 51 | . . . . . . 1 . . 1 . . . 6 . . . . 16 . 1 . 4 4 10 8 Corrupted Parts 9 | . . . . . . . . . . . . . . . . . . . . . 8 1 . . . System Corruption 54 | . . . . . . . . . . . . . . . . . . . . . 49 5 . . . Parts Lost 122 | . . . . . . . . 1 2 2 4 2 22 2 18 5 2 8 . 11 1 16 . 3 23 Power 11 | . . . . . . . . . . . 1 . 3 . 4 . . 1 . . . 1 . . 1 Propulsion 35 | . . . . . . . . 1 1 . 1 . 6 1 3 1 1 3 . 6 1 4 . . 6 Utility 41 | . . . . . . . . . . 1 . 1 8 1 6 2 1 1 . 3 . 6 . 2 9 Weapon 35 | . . . . . . . . . 1 1 2 1 5 . 5 2 . 3 . 2 . 5 . 1 7 Highest Loss Streak 13 | . . . . . . . . 1 1 2 4 1 5 1 5 2 2 5 . 6 2 9 . 1 13 To Critical Strikes 2 | . . . . . . . . . . . . . 1 . . . . . . . . 1 . . . Average Backups 16 | 3 5 7 9 13 13 14 13 13 12 13 13 8 16 23 22 22 23 23 3 4 4 6 10 18 13 Power 1 | . 1 1 1 1 1 1 1 1 1 1 . . 1 4 3 2 2 1 1 . . . . 2 1 Propulsion 1 | 1 2 2 2 1 1 1 . . . 1 . . 1 3 1 1 1 . . . 1 . 2 2 . Utility 7 | . 1 2 3 6 6 7 8 9 8 7 5 5 7 8 9 13 15 13 2 3 1 . 4 7 4 Weapon 4 | 1 1 2 2 4 4 4 3 3 2 3 4 2 5 7 7 4 4 5 . . 1 3 2 5 4 Tool/Special . | . . . . . . . . . . . . . . . . . . . . . . . . . . Unused Backups 72 | . . . 1 2 . 4 3 . 3 1 1 1 9 3 . . 1 18 . 1 1 1 4 12 6 Power 8 | . . . . . . . 1 . . . . . 1 . . . . 1 . . . 1 . 1 3 Propulsion 5 | . . . . 1 . . 1 . . . . . . . . . . . . . 1 . 1 1 . Utility 32 | . . . . 1 . 2 . . 2 1 1 1 5 1 . . . 11 . 1 . . 2 3 1 Weapon 26 | . . . 1 . . 2 1 . 1 . . . 3 2 . . 1 5 . . . . 1 7 2 Tool/Special 1 | . . . . . . . . . . . . . . . . . . 1 . . . . . . . Average Slot Usage (%) 86 | . 88 100 100 100 86 93 90 81 90 91 80 82 95 95 92 90 97 83 20 43 69 86 78 78 65 Engine 4 | . 14 14 14 14 9 9 9 9 7 7 5 7 2 6 5 5 5 3 . . . . . . . Reactor 2 | . . . . . . . . . . . . . 1 . 3 . . 1 . . . 3 7 8 6 Treads 2 | . . . . . . . . . . . . . 1 . . . . . . . . . 12 13 9 Wheel 9 | . 28 28 28 28 18 18 18 9 13 15 13 15 10 12 10 6 8 10 . . . . . . . Device 16 | . . . . . 7 17 18 14 22 17 10 2 19 13 13 19 22 19 4 6 4 14 16 24 23 Storage 5 | . 14 14 14 14 9 9 9 9 7 7 7 7 6 6 5 5 5 4 . . . 1 2 4 3 Processor 12 | . . . . . . . . . . 4 7 7 18 23 23 23 23 21 1 8 10 9 13 8 5 Hackware 2 | . . . . . . . . 3 7 7 7 7 6 1 . . . . 5 7 10 8 1 . . Protection 6 | . 3 14 14 14 16 13 9 9 7 7 11 15 5 13 7 1 . . . . . . 6 4 2 Energy Gun 1 | . 14 14 14 12 . . . . . . 1 . . . . . . 4 . 1 2 3 2 6 . Energy Cannon 2 | . . . . . . . . . . . . . . . . 8 5 4 . . . . 2 4 9 Ballistic Gun 6 | . 14 14 14 14 25 22 25 10 20 20 10 18 8 . . . . . . . 9 11 2 . 1 Ballistic Cannon 5 | . . . . . . . . 8 1 . . . 9 10 15 10 16 4 . . . . 3 . . Slashing Weapon 1 | . . . . 1 1 4 1 7 . . . . . 4 1 1 . . . . . . . 1 . Peak Build Rating 224 | 6 7 7 10 13 22 39 40 39 48 49 48 47 71 72 84 87 90 126 34 77 99 140 193 224 223 Average Rating 87 | 3 6 7 8 10 21 31 39 37 45 47 41 41 60 69 77 77 87 85 28 51 76 118 171 206 168 On Entrance 54 | . 6 7 7 10 13 22 39 39 38 46 48 47 43 70 72 54 86 82 20 34 73 98 64 192 209 Naked Turns 145 | . . . . . . . . . . . . . . . . . . . . . . . . . 145 Heaviest Build 219 | 14 17 17 32 33 42 60 65 67 70 73 73 78 134 134 159 136 138 172 5 23 37 76 208 219 219 Greatest Support 230 | 26 26 26 26 26 26 26 26 32 32 26 26 20 70 26 22 22 22 26 10 32 100 148 225 230 230 Greatest Overweight (x) 13 | . . . 1 1 1 2 2 4 4 2 6 3 5 6 13 11 11 12 . 4 1 . . 1 2 Average Overweight (x) 2 | . . . . 1 1 1 2 3 2 2 2 3 2 4 6 8 7 5 . . . . . . . Largest Inventory Capacity 25 | 8 8 8 15 15 15 15 15 15 15 15 15 15 25 25 25 25 25 25 5 5 5 15 25 25 25 Average Capacity 18 | 7 8 8 10 15 15 15 15 15 15 15 15 15 18 25 25 25 25 24 5 5 5 7 15 25 20 Most Carried 25 | 7 7 8 12 15 14 15 15 15 15 15 15 11 25 25 25 25 25 25 5 5 5 13 25 25 25 Average Carried 17 | 3 5 7 9 13 12 14 14 14 13 14 13 8 16 24 22 22 24 24 3 4 4 6 14 24 19 Final Capacity 25 | 8 8 8 15 15 15 15 15 15 15 15 15 15 25 25 25 25 25 5 5 5 5 5 25 25 5 Final Carried 25 | 4 7 8 12 15 13 15 15 14 14 15 8 10 25 24 22 25 24 4 5 5 4 5 24 22 . Class Distribution -------------------- 28% | Scavenger-Gunner 14% | Mutant 13% | Tank 10% | Commander-Mutant 9% | Scavenger-Tank 5% | Commander-Tank 5% | Scavenger-Mutant 4% | Gunner 3% | Hacker-Mutant Dominant Class ---------------- Mutant | -10/Materials Mutant | -10/Mines Commander-Mutant | -10/Exiles Commander-Mutant | -9/Mines Commander-Tank | -8/Materials Commander-Mutant | -8/Garrison Commander-Tank | -8/Materials Commander-Mutant | -8/Garrison Tank | -7/Factory Scavenger-Gunner | -7/Lower Caves Scavenger-Mutant | -7/Data Miner Scavenger-Mutant | -6/Proximity Caves Scavenger-Gunner | -6/Factory Mutant | -6/Garrison Scavenger-Gunner | -5/Factory Scavenger-Gunner | -5/Upper Caves Scavenger-Gunner | -5/Upper Caves Scavenger-Mutant | -5/Warlord Hacker-Mutant | -4/Proximity Caves Hacker-Mutant | -4/Factory Hacker-Mutant | -4/Upper Caves Scavenger-Gunner | -3/Research Scavenger-Tank | -2/Research Tank | -2/Quarantine Tank | -2/Section 7 Resources | -11 -10 -10 -10 -9 -8 -8 -8 -8 -7 -7 -7 -6 -6 -6 -5 -5 -5 -5 -4 -4 -4 -3 -2 -2 -2 ----------- Run | Yrd Mat Min Exi Min Mat Gar Mat Gar Fac Low Dat Pro Fac Gar Fac Upp Upp War Pro Fac Upp Res Res Qua Sec Matter Collected 11420 | 198 104 110 6 13 . 83 317 188 321 499 205 522 1841 918 1666 340 238 232 40 110 170 1016 1026 767 490 Remotely 20 | . . . . . . . . . . . . . . . . 20 . . . . . . . . . Salvage Created 12958 | . 138 . 40 32 . 83 248 233 516 235 80 160 2540 935 1412 408 162 186 . 483 . 2024 135 1215 1693 Parts 604 | . 13 . 2 4 . 3 13 10 29 11 . 15 133 32 68 20 12 11 . 34 . 66 4 51 73 Haulers Intercepted 10 | . 1 . . . . . . . 1 . . . 4 . 2 . . . . . . 2 . . . Recyclers Shooed 3 | . . . . . . . . . . . . . . . 2 . . . . . . 1 . . . Parts Field Recycled 32 | . . . . . . . . . . 3 2 3 8 . 16 . . . . . . . . . . Retrieved Matter 510 | . . . . . . . . . . 33 8 20 111 . 338 . . . . . . . . . . Parts Self-Destructed 55 | . . . . . . . . . . 7 . 16 . . . 20 12 . . . . . . . . Prevented 11 | . . . . . . . . . . . . . . . . 1 . . 2 . 8 . . . . Kills | -11 -10 -10 -10 -9 -8 -8 -8 -8 -7 -7 -7 -6 -6 -6 -5 -5 -5 -5 -4 -4 -4 -3 -2 -2 -2 ------- Run | Yrd Mat Min Exi Min Mat Gar Mat Gar Fac Low Dat Pro Fac Gar Fac Upp Upp War Pro Fac Upp Res Res Qua Sec Combat Hostiles Destroyed 247 | . 4 . . 2 . . 1 5 8 8 4 3 42 20 37 8 6 8 . 15 . 15 2 23 36 Melee 9 | . . . . . . . . 2 . . . . . . . . . . . 3 . . . 2 2 Guns 67 | . 4 . . 2 . . 1 2 5 3 . 3 23 . . . . 1 . 4 . 11 . 4 4 Cannons 110 | . . . . . . . . 1 . . . . 14 18 31 8 6 . . . . 1 1 9 21 AOE 54 | . . . . . . . . . 3 5 4 . 5 2 5 . . 7 . 6 . 2 . 8 7 Classes Destroyed 25 | . 3 . . . . . 4 1 3 . . . 2 2 3 1 . 1 . . . . . 2 3 Worker 17 | . . . . . . . . . 3 . . . 5 . 3 . . . . . . 4 . 2 . Builder 7 | . . . . . . . . . . . . . 1 . 3 . . . . 2 . 1 . . . Tunneler 4 | . . . . . . . . . 1 . . . 2 . 1 . . . . . . . . . . Hauler 10 | . 1 . . . . . . . 1 . . . 4 . 2 . . . . . . 2 . . . Recycler 11 | . . . . . . . 2 . . . . . 3 . 1 . . . . . . 5 . . . Mechanic 1 | . . . . . . . . . . . . . . . 1 . . . . . . . . . . Operator 2 | . . . . . . . 1 . . . . . . . . . . . . 1 . . . . . Watcher 6 | . . . . . . . 1 . . . . . 3 . 1 . . . . . . 1 . . . Swarmer 54 | . 3 . . 2 . . . . . 2 . . 9 3 9 . 5 . . 13 . . . 4 4 Saboteur 4 | . . . . . . . . . . . . . . . 1 . . . . . . . . . 3 Grunt 77 | . 1 . . . . . . 2 5 4 . . 16 7 18 5 . 4 . . . 8 . 2 5 Brawler 1 | . . . . . . . . . . . . . . 1 . . . . . . . . . . . Duelist 5 | . . . . . . . . . 1 . . . 2 . 1 . . . . . . . . . 1 Protector 1 | . . . . . . . . . . . . . . . 1 . . . . . . . . . . Sentry 25 | . . . . . . . 1 1 2 1 . 1 2 6 2 1 1 . . . . . 2 . 5 Specialist 1 | . . . . . . . . . . . . . . 1 . . . . . . . . . . . Hunter 20 | . . . . . . . . . . . . . 7 . . 1 . . . . . 4 . 3 5 Programmer 42 | . . . . . . . . 2 . 1 . 2 6 2 5 . . 2 . 2 . 3 . 12 5 Heavy 2 | . . . . . . . . . . . . . . . . . . . . . . . . . 2 Behemoth 2 | . . . . . . . . . . . . . . . . 1 . . . . . . . . 1 Enhanced Grunt 4 | . . . . . . . . . . . 4 . . . . . . . . . . . . . . Tracker 2 | . . . . . . . . . . . . . . . . . . . . . . . . . 2 Investigator 1 | . . . . . . . . . . . . . . . . . . . . . . . . . 1 Striker 3 | . . . . . . . . . . . . . . . . . . 2 . . . . . . 1 Executioner 1 | . . . . . . . . . . . . . . . . . . . . . . . . . 1 Alpha 7 2 | . . . . . . . . . . . . . . . . . . . . . . . . 1 1 Fortress 1 | . . . . . . . . . . . . . . . . . . . . . . . . 1 . Savage 1 | . . . . . . . . . . . . . . . . . 1 . . . . . . . . Best Kill Streak 12 | . 3 . . 2 . . 1 2 3 4 4 1 9 4 12 5 5 8 . 7 . 7 1 4 8 Combat Bots Only 9 | . 3 . . 2 . . 1 2 3 4 4 1 6 4 9 5 5 8 . 5 . 4 1 4 7 Max Kills in Single Turn 8 | . 1 . . 2 . . 1 1 2 2 2 1 4 1 5 1 2 6 . 7 . 3 1 4 8 Gunslinging 1 | . . . . 1 . . . . . . . . . . . . . . . . . 1 . . . Exploded 7 | . . . . . . . . . 2 2 2 . 3 1 4 . . 6 . 5 . 1 . 4 7 Melee 1 | . . . . . . . . 1 . . . . . . . . . . . 1 . . . 1 1 Uniques/NPCs Destroyed . | . . . . . . . . . . . . . . . . . . . . . . . . . . Combat | -11 -10 -10 -10 -9 -8 -8 -8 -8 -7 -7 -7 -6 -6 -6 -5 -5 -5 -5 -4 -4 -4 -3 -2 -2 -2 -------- Run | Yrd Mat Min Exi Min Mat Gar Mat Gar Fac Low Dat Pro Fac Gar Fac Upp Upp War Pro Fac Upp Res Res Qua Sec Hostile Shots Fired 2452 | . 15 . . 2 . . 10 44 92 61 22 48 284 124 252 41 22 84 10 161 8 250 51 313 558 Missed 775 | . 5 . . 1 . . 2 13 39 15 6 14 90 51 71 13 7 27 10 57 1 105 12 88 148 Hits 1677 | . 10 . . 1 . . 8 31 53 46 16 34 194 73 181 28 15 57 . 104 7 145 39 225 410 Melee 17 | . . . . . . . . . . . . . 5 . 1 . . 1 . . . 9 . . 1 Projectile 1660 | . 10 . . 1 . . 8 31 53 46 16 34 189 73 180 28 15 56 . 104 7 136 39 225 409 AOE 2 | . . . . . . . . . . . . . . . . . . . . . . . . . 2 Critical Strikes 71 | . . . . . . . . 2 . 3 . 2 8 2 7 1 . 2 . 5 . 8 1 16 14 Part Disruptions 9 | . . . . . . . . . . . 1 . . . 2 . . 2 . . . . . 3 1 Damage Taken 30790 | . 90 . . 10 . . 111 478 671 754 742 364 3030 785 3336 644 256 1398 . 1861 174 2799 543 4490 8254 Core 4375 | . 10 . . . . . 29 24 60 42 . 21 431 66 351 102 12 410 . 936 34 394 19 109 1325 Absorbed by Shields 2322 | . . . . . . . . . . . . . . 85 . . . 18 . . . . 270 792 1157 Reduced by Siege Mode 645 | . . . . . . . . . . . . . . . . . . . . . . . . 168 477 Ignored by Resistances 1407 | . . . . . . . . . . . . . 48 . . 15 . 48 . . . 19 81 175 1021 Regen/Repaired (Parts) 1124 | . . . . . . . . . 479 . . . . . . . . 165 . . . . 37 206 237 Core Remaining (%) 63 | 100 . . . 96 . . . 90 . . . 82 . 41 . . . . 12 . 15 69 . . . Volleys Fired 715 | . 14 . 2 1 . 11 10 13 31 20 8 14 115 57 62 21 10 11 . 21 . 56 26 98 114 Largest 4 | . 2 . 2 2 . 3 3 3 3 3 3 3 3 3 4 4 4 3 . 1 . 4 4 4 4 Hottest 350 | . 70 . 70 70 . 76 84 96 100 89 141 89 151 240 159 250 246 90 . 60 . 300 243 350 300 Shots Fired 1725 | . 28 . 4 2 . 23 30 28 79 49 13 38 308 93 178 68 40 18 . 21 . 200 45 238 222 Gun 881 | . 28 . 4 2 . 23 30 18 70 45 3 38 211 1 . . . 13 . 21 . 191 13 99 71 Cannon 792 | . . . . . . . . 10 1 . . . 94 89 177 68 40 . . . . 5 30 128 150 Launcher 44 | . . . . . . . . . 8 4 10 . 3 3 1 . . 3 . . . 4 2 5 1 Special 8 | . . . . . . . . . . . . . . . . . . 2 . . . . . 6 . Kinetic 1172 | . 14 . 2 1 . 23 30 28 71 45 . 38 299 89 177 29 30 . . 13 . 139 26 32 86 Thermal 416 | . 14 . 2 1 . . . . . . 3 . 5 1 . 39 10 . . . . 52 8 178 103 Explosive 38 | . . . . . . . . . 8 4 10 . 3 3 1 . . . . . . 4 . 5 . Electromagnetic 75 | . . . . . . . . . . . . . 1 . . . . . . 8 . 5 11 17 33 Entropic 16 | . . . . . . . . . . . . . . . . . . 16 . . . . . . . Robot Hit Streak 42 | . 10 . 5 3 . 5 4 2 13 15 10 11 42 10 9 11 4 5 . 4 . 14 13 25 26 Robot Miss Streak 6 | . 3 . 1 . . 1 2 2 3 4 5 4 3 5 6 3 3 4 . 3 . 6 3 4 3 Penetration Max 1 | . . . . . . 1 . 1 1 . . . 1 . 1 . . . . . . 1 . . 1 Secondary Targets 9 | . 1 . . 1 . . . . 1 . . . 3 . . . . . . . . 2 . 1 . Max Gunslinging Chain 2 | . 1 . . 1 . . . . 1 . . . 1 . . . . . . . . 2 . 1 . Shots Hit Robots 1103 | . 18 . 3 2 . 7 15 17 43 28 10 15 229 56 101 35 18 11 . 25 . 123 20 170 157 Core Hits 567 | . 7 . 2 2 . 6 6 5 27 16 22 6 116 30 69 17 9 11 . 17 . 54 13 66 66 Critical Kills 11 | . . . . . . . . . 2 . . . 3 . . . . . . 1 . 4 . . 1 Critical Parts Destroyed 11 | . . . . . . . 1 . . . . 1 1 . . . . . . 2 . 4 . . 2 Critical Strikes 62 | . . . . 1 . . 1 . 2 . . 1 7 8 8 . 3 . . 5 . 16 3 4 3 Burn 7 | . . . . 1 . . . . . . . . . . . . . . . . . 6 . . . Destroy 19 | . . . . . . . 1 . 2 . . 1 4 . . . . . . . . 8 . . 3 Blast 27 | . . . . . . . . . . . . . 3 6 8 . 3 . . . . . 3 4 . Corrupt 2 | . . . . . . . . . . . . . . . . . . . . 1 . 1 . . . Smash 3 | . . . . . . . . . . . . . . . . . . . . 3 . . . . . Sever 3 | . . . . . . . . . . . . . . 2 . . . . . 1 . . . . . Impale 1 | . . . . . . . . . . . . . . . . . . . . . . 1 . . . Melee Attacks 146 | . . . . . . 4 1 42 . . . . 9 25 6 . . . . 28 . 7 . 19 5 Kinetic 3 | . . . . . . . . . . . . . . . . . . . . . . . . . 3 Impact 18 | . . . . . . . . . . . . . . . . . . . . 18 . . . . . Slashing 118 | . . . . . . 4 1 42 . . . . 9 25 6 . . . . 10 . . . 19 2 Piercing 7 | . . . . . . . . . . . . . . . . . . . . . . 7 . . . Sneak Attacks 10 | . . . . . . . 1 . . . . . 6 . 1 . . . . 1 . 1 . . . Combat Hostiles . | . . . . . . . . . . . . . . . . . . . . . . . . . . Follow-up Attacks . | . . . . . . . . . . . . . . . . . . . . . . . . . . Damage Inflicted 57659 | . 215 . 35 25 . 383 357 604 1204 928 1455 352 6607 3102 5873 1275 731 3131 . 1818 . 4521 1328 6972 16743 Guns 13872 | . 215 . 35 25 . 132 272 175 902 499 25 352 3507 . . . . 332 . 234 . 3476 138 2257 1296 Cannons 19170 | . . . . . . . . 32 23 . . . 2015 2105 5002 1275 731 . . . . 170 556 3336 3925 Explosions 21558 | . . . . . . 169 . . 279 429 1430 . 665 311 768 . . 2799 . 938 . 770 634 1031 11335 Melee 2948 | . . . . . . 82 85 397 . . . . 420 686 103 . . . . 646 . 74 . 268 187 Ramming 111 | . . . . . . . . . . . . . . . . . . . . . . 31 . 80 . Kinetic 22135 | . 116 . 10 12 . 132 272 207 925 499 . 352 5468 2105 5002 547 543 . . 159 . 2679 429 876 1802 Thermal 22850 | . 99 . 25 13 . . . . . . 25 . 293 . 492 728 188 . . 938 . 797 90 4951 14211 Explosive 5361 | . . . . . . 169 . . 279 429 1430 . 426 311 276 . . . . . . 770 451 768 52 Electromagnetic 1214 | . . . . . . . . . . . . . . . . . . . . 75 . 170 358 29 582 Impact 242 | . . . . . . . . . . . . . . . . . . . . 242 . . . . . Slashing 2541 | . . . . . . 82 85 397 . . . . 420 686 103 . . . . 404 . . . 268 96 Piercing 74 | . . . . . . . . . . . . . . . . . . . . . . 74 . . . Entropic 3131 | . . . . . . . . . . . . . . . . . . 3131 . . . . . . . Highest Corruption 50 | . . . . . . . . 4 . 1 1 4 1 3 3 3 . 1 1 1 50 14 . 22 32 Average Corruption 7 | . . . . . . . . 3 . 1 1 2 1 2 1 2 . 1 1 1 28 4 . 16 28 Corruption Purged 3 | . . . . . . . . . . . . . . . . 3 . . . . . . . . . Corruption Blocked . | . . . . . . . . . . . . . . . . . . . . . . . . . . Effects 278 | . . . . . . . . 30 . 1 1 6 8 28 9 20 . . 1 1 4 17 . 71 81 Message Errors 62 | . . . . . . . . 9 . . . 1 1 9 2 2 . . . . 1 2 . 16 19 Matter Fused 59 | . . . . . . . . 4 . . . 1 4 5 1 3 . . . . 2 4 . 16 19 Heat Flow Errors 24 | . . . . . . . . 4 . . . 2 1 5 . 1 . . . . . 2 . 2 7 Energy Discharges 40 | . . . . . . . . 8 . . . . 1 3 2 3 . . 1 . 1 3 . 10 8 Parts Rejected 4 | . . . . . . . . . . . . . . . 1 . . . . 1 . . . 1 1 Parts Fused 6 | . . . . . . . . 1 . . 1 . . 2 . . . . . . . . . . 2 Data Loss (minor) 37 | . . . . . . . . 4 . . . 1 1 1 2 5 . . . . . 3 . 12 8 Data Loss (major) 16 | . . . . . . . . . . 1 . 1 . 3 . 3 . . . . . 1 . 3 4 Misfires 9 | . . . . . . . . . . . . . . . 1 1 . . . . . 1 . 4 2 Alerts 7 | . . . . . . . . . . . . . . . . 2 . . . . . . . 4 1 Misdirections 4 | . . . . . . . . . . . . . . . . . . . . . . 1 . . 3 Weapon Failures 10 | . . . . . . . . . . . . . . . . . . . . . . . . 3 7 Overload Shots 1 | . . . . . . . . . . . . . . 1 . . . . . . . . . . . Overflow Damage 3240 | . . . . . . 38 . 16 . . 15 . 137 119 285 . . 247 . 266 . 25 72 178 1842 Projectiles 404 | . . . . . . . . . . . . . 29 89 186 . . . . . . 7 . 66 27 Explosions 2609 | . . . . . . 6 . . . . 15 . 108 13 99 . . 247 . 168 . 18 72 48 1815 Melee 227 | . . . . . . 32 . 16 . . . . . 17 . . . . . 98 . . . 64 . Knockbacks 85 | . . . . . . . . . . . . . 7 7 53 3 1 . . 2 . . 1 6 5 Impact 2 | . . . . . . . . . . . . . . . . . . . . 2 . . . . . Kinetic 72 | . . . . . . . . . . . . . 7 7 42 3 1 . . . . . 1 6 5 Secondary 11 | . . . . . . . . . . . . . . . 11 . . . . . . . . . . Self-Inflicted Damage 2118 | . . . . . . . . . 85 . . . . . 207 . . . . 198 . 8 26 90 1504 Shots 13 | . . . . . . . . . 1 . . . . . 3 . . . . 2 . 1 3 1 2 Rammed 3 | . . . . . . . . . . . . . . . . . . . . . . . . 3 . Targets Rammed 8 | . . . . . . . . . . . . . . . . . . . . . . 3 . 5 . Kicked 3 | . . . . . . . . . . . . . . . . . . . . . . 3 . . . Crushed 2 | . . . . . . . . . . . . . . . . . . . . . . . . 2 . Highest Temperature 463 | . 84 . 36 18 . 6 3 174 9 27 72 171 118 254 200 374 288 22 . 6 . 463 293 93 238 Average Temperature 61 | . 41 . 18 9 . 4 3 75 6 14 40 79 18 82 45 112 128 14 . 5 . 159 28 48 100 Received Heat Transfer 3782 | . 30 . . . . . 36 72 270 306 . 42 492 257 979 195 . 69 . 75 . 177 32 103 647 Effects 1 | . . . . . . . . . . . . . . . . . . . . . . 1 . . . Interference 1 | . . . . . . . . . . . . . . . . . . . . . . 1 . . . Siege Activations 6 | . . . . . . . . . . . . . . . . . . . . . . . . 2 4 Total Turns 207 | . . . . . . . . . . . . . . . . . . . . . . . . 113 94 Longest Duration 79 | . . . . . . . . . . . . . . . . . . . . . . . . 79 46 Martial Activations . | . . . . . . . . . . . . . . . . . . . . . . . . . . Shielding Activations . | . . . . . . . . . . . . . . . . . . . . . . . . . . Robots Disrupted 1 | . . . . . . . . . . . . . . . . . . . . . . . . . 1 Combat Hostiles 1 | . . . . . . . . . . . . . . . . . . . . . . . . . 1 Robots Corrupted 7 | . . . . . . . . . . . . . . . 1 . . . . 2 . 1 1 . 2 Combat Hostiles 7 | . . . . . . . . . . . . . . . 1 . . . . 2 . 1 1 . 2 Parts Fried 4 | . . . . . . . . . . . . . . . . . . . . 2 . . . . 2 Impact Corruptions 7 | . . . . . . . . . . . . . . . 1 . . . . 5 . . . 1 . Robots Melted . | . . . . . . . . . . . . . . . . . . . . . . . . . . Combat Hostiles . | . . . . . . . . . . . . . . . . . . . . . . . . . . Parts Melted 14 | . 1 . . 1 . . . 1 . . . . . . . . . . . 2 . 8 . 1 . Heat Transferred 7698 | . 296 . 74 111 . . . . . . 74 . 274 . 350 857 185 . . 550 . 1937 111 2849 30 Parts Sabotaged 4 | . . . . . . . . . . . . . . . . . . . . . . . . . 4 Parts Stolen . | . . . . . . . . . . . . . . . . . . . . . . . . . . Parts Stripped . | . . . . . . . . . . . . . . . . . . . . . . . . . . Power Chain Reactions 3 | . . . . . . . . . . . . . . . . . . . . . . . . 3 . Alert | -11 -10 -10 -10 -9 -8 -8 -8 -8 -7 -7 -7 -6 -6 -6 -5 -5 -5 -5 -4 -4 -4 -3 -2 -2 -2 ------- Run | Yrd Mat Min Exi Min Mat Gar Mat Gar Fac Low Dat Pro Fac Gar Fac Upp Upp War Pro Fac Upp Res Res Qua Sec Maximum Alert Level 5 | . . . . . . 3 3 5 4 . . . 2 4 4 . . . . 2 . 1 . 2 5 Low Security (%) 27 | 100 100 100 . 100 100 13 . . . . . . 22 . . . . . . 60 . 40 100 48 . Level 1 22 | . . . . . . 27 6 . . . . . 51 . . . . . . 16 . 59 . 31 49 Level 2 17 | . . . . . . 31 66 5 . . . . 26 28 10 . . . . 22 . . . 20 19 Level 3 17 | . . . . . . 27 26 19 91 . . . . 40 35 . . . . . . . . . 15 Level 4 11 | . . . . . . . . 38 8 . . . . 30 54 . . . . . . . . . . Level 5 3 | . . . . . . . . 36 . . . . . . . . . . . . . . . . . High Security . | . . . . . . . . . . . . . . . . . . . . . . . . . . Max Security 1 | . . . . . . . . . . . . . . . . . . . . . . . . . 14 Peak Influence 2204 | . 88 22 . 98 . 911 750 1765 1204 . . . 612 1382 1484 . . . . 613 . 382 179 457 2204 Initial 926 | . . 22 . . . . 443 456 926 . . . . 428 725 . . . . 37 . 263 111 72 248 Average 562 | . 46 6 . 25 . 495 555 1370 979 . . . 313 921 1122 . . . . 201 . 220 70 247 658 Influence Increases 13905 | . 127 . 6 98 . 911 577 1559 732 170 . 80 1464 1074 1441 180 130 175 60 890 56 619 477 992 2087 Destroy 0b10 Robot/C 6000 | . 80 . . 60 . . 180 600 280 160 . 60 840 400 720 160 120 160 . 300 40 300 40 460 1040 Destroy 0b10 Robot/NC 325 | . 5 . 5 . . 10 20 . 25 . . . 90 10 65 . . . . 20 . 65 . 10 . Destroy Leader 982 | . 22 . . 10 . . 52 30 62 10 . 20 194 20 136 20 10 . . 40 10 56 20 80 190 Allied During Kill 1032 | . . . 1 28 . 8 252 514 67 . . . . 4 . . . . . . 6 . . . 152 Successful Hack 486 | . 20 . . . . 35 11 40 42 . . . 101 12 26 . . . . 27 . 12 . 76 84 Select Force Hacks 30 | . . . . . . . 30 . . . . . . . . . . . . . . . . . . Disable Machine 1020 | . . . . . . 15 30 15 165 . . . 120 30 75 . . . . 60 . . 15 195 300 Anti-Garrison Action 1750 | . . . . . . 800 . 300 . . . . . 350 . . . . . . . . 300 . . Destroy Structure 1275 | . . . . . . 43 2 60 91 . . . 74 113 284 . . . . 98 . 66 102 171 171 Partial Spotted 105 | . . . . . . . . . . . . . . . 15 . . . . 60 . 30 . . . Lose Combat Pursuer 900 | . . . . . . . . . . . . . 45 135 120 . . 15 60 285 . 90 . . 150 Influence Decreases 12274 | . 70 57 6 98 . . 786 496 1293 627 747 80 852 304 1339 1078 524 304 63 355 261 811 545 680 898 Entered New Map 5250 | . . 35 . . . . 468 246 839 447 747 . . 184 657 550 112 192 63 23 221 127 87 58 194 Time Decay 5184 | . 70 22 6 98 . . 198 . 374 160 . 70 632 . 502 478 392 32 . 222 30 374 458 592 474 Lost Part 1170 | . . . . . . . . 10 20 20 . 10 220 20 180 50 20 80 . 110 10 160 . 30 230 Lost Ally 520 | . . . . . . . 120 240 60 . . . . 100 . . . . . . . . . . . Purge Threat 150 | . . . . . . . . . . . . . . . . . . . . . . 150 . . . Squads Dispatched 79 | . 1 . . . . . 3 . 5 . . . 12 . 12 . . . . 6 . 6 . 13 21 Investigation 4 | . . . . . . . 1 . . . . . 1 . . . . . . 2 . . . . . Extermination 22 | . . . . . . . . . 1 . . . 7 . 3 . . . . 1 . 2 . 5 3 Reinforcement 19 | . 1 . . . . . 2 . 1 . . . 4 . 3 . . . . 1 . 4 . 3 . Assault 22 | . . . . . . . . . 3 . . . . . 5 . . . . . . . . 2 12 Garrison 9 | . . . . . . . . . . . . . . . 1 . . . . 2 . . . 3 3 Intercept 3 | . . . . . . . . . . . . . . . . . . . . . . . . . 3 Searches Triggered . | . . . . . . . . . . . . . . . . . . . . . . . . . . Construction Impeded 3 | . . . . . . . 1 . . . . . . . 1 . . . . . . 1 . . . Haulers Reinforced 7 | . . . . . . . . . 1 . . . 2 . 1 . . . . 1 . 2 . . . Active Scanning Responses . | . . . . . . . . . . . . . . . . . . . . . . . . . . Cargo Convoy Interrupts . | . . . . . . . . . . . . . . . . . . . . . . . . . . Stealth | -11 -10 -10 -10 -9 -8 -8 -8 -8 -7 -7 -7 -6 -6 -6 -5 -5 -5 -5 -4 -4 -4 -3 -2 -2 -2 --------- Run | Yrd Mat Min Exi Min Mat Gar Mat Gar Fac Low Dat Pro Fac Gar Fac Upp Upp War Pro Fac Upp Res Res Qua Sec Distress Signals 15 | . . . . . . . . . . . . . 3 . . . . . . 2 . 2 7 1 . Communications Jammed 121 | . . . . . . . 1 . 1 . . . 40 40 22 . . . . . . . . 9 8 Distress Signals 115 | . . . . . . . . . 1 . . . 40 40 22 . . . . . . . . 9 3 Times Spotted 458 | . 5 . . 3 . . 13 27 11 11 8 3 55 29 54 7 6 29 12 41 2 30 11 39 62 Peak Tracking Total 16 | . 3 . . 3 . . 2 3 3 7 4 1 6 4 7 5 5 15 9 16 2 7 5 7 13 Tactical Retreats 33 | . . . . . . . . . . . . . 3 9 4 . . 1 1 8 . 3 . . 4 Traps | -11 -10 -10 -10 -9 -8 -8 -8 -8 -7 -7 -7 -6 -6 -6 -5 -5 -5 -5 -4 -4 -4 -3 -2 -2 -2 ------- Run | Yrd Mat Min Exi Min Mat Gar Mat Gar Fac Low Dat Pro Fac Gar Fac Upp Upp War Pro Fac Upp Res Res Qua Sec Traps Triggered 23 | . . . . . . 3 . 7 . . . . 1 11 . . . . . . . . . . 1 Indirectly . | . . . . . . . . . . . . . . . . . . . . . . . . . . Trap Hack Attempts . | . . . . . . . . . . . . . . . . . . . . . . . . . . Triggered . | . . . . . . . . . . . . . . . . . . . . . . . . . . Disarmed . | . . . . . . . . . . . . . . . . . . . . . . . . . . Reprogrammed . | . . . . . . . . . . . . . . . . . . . . . . . . . . Reused . | . . . . . . . . . . . . . . . . . . . . . . . . . . Traps Extracted . | . . . . . . . . . . . . . . . . . . . . . . . . . . Installed . | . . . . . . . . . . . . . . . . . . . . . . . . . . Triggered . | . . . . . . . . . . . . . . . . . . . . . . . . . . Machines | -11 -10 -10 -10 -9 -8 -8 -8 -8 -7 -7 -7 -6 -6 -6 -5 -5 -5 -5 -4 -4 -4 -3 -2 -2 -2 ---------- Run | Yrd Mat Min Exi Min Mat Gar Mat Gar Fac Low Dat Pro Fac Gar Fac Upp Upp War Pro Fac Upp Res Res Qua Sec Machines Disabled 97 | . . . . . . 7 2 5 11 4 1 . 8 11 5 . . . . 4 . . 3 14 22 Max in Single Turn 10 | . . . . . . 1 1 1 4 1 1 . 3 2 2 . . . . 2 . . 1 2 10 Garrison Access 5 | . . . . . . . . . . . . . . . 2 . . . . . . . 3 . . Garrison Relay 15 | . . . . . . 5 . 4 . . . . . 6 . . . . . . . . . . . Phase Generator 2 | . . . . . . 1 . . . . . . . 1 . . . . . . . . . . . Machines Repaired . | . . . . . . . . . . . . . . . . . . . . . . . . . . Machines Dismantled . | . . . . . . . . . . . . . . . . . . . . . . . . . . Machines Sabotaged . | . . . . . . . . . . . . . . . . . . . . . . . . . . Overloaded Fab Kills . | . . . . . . . . . . . . . . . . . . . . . . . . . . Hacking | -11 -10 -10 -10 -9 -8 -8 -8 -8 -7 -7 -7 -6 -6 -6 -5 -5 -5 -5 -4 -4 -4 -3 -2 -2 -2 --------- Run | Yrd Mat Min Exi Min Mat Gar Mat Gar Fac Low Dat Pro Fac Gar Fac Upp Upp War Pro Fac Upp Res Res Qua Sec Machines Accessed 97 | . 3 . 1 . 1 4 5 5 4 1 4 . 21 2 5 . 1 7 . 4 . 4 . 14 11 Terminals 61 | . 3 . . . . 4 3 5 2 1 . . 13 2 1 . . . . 3 . 2 . 11 11 Fabricators 7 | . . . . . . . . . . . . . 4 . 1 . . . . 1 . 1 . . . Repair Stations 3 | . . . . . . . . . 1 . . . . . 1 . . . . . . . . 1 . Recycling Units 4 | . . . . . . . . . . . . . 3 . . . . . . . . 1 . . . Scanalyzers 5 | . . . . . . . 1 . 1 . . . . . 1 . . . . . . . . 2 . Garrison Access 4 | . . . . . 1 . 1 . . . . . 1 . 1 . . . . . . . . . . Total Hacks 261 | . 7 . 1 . 2 10 25 9 10 7 28 . 58 6 11 . 1 16 . 13 . 8 . 25 24 Successful 166 | . 5 . 1 . 1 3 18 4 7 7 28 . 29 1 5 . 1 16 . 6 . 3 . 14 17 Failed 95 | . 2 . . . 1 7 7 5 3 . . . 29 5 6 . . . . 7 . 5 . 11 7 Catastrophic 21 | . . . . . . 2 1 . . . . . 8 2 2 . . . . 1 . . . 4 1 Database Lockouts . | . . . . . . . . . . . . . . . . . . . . . . . . . . Manual 44 | . 5 . . . . . 3 . 4 . . . 17 . 2 . . 1 . 1 . . . 4 7 Terminals 148 | . 7 . . . . 10 9 9 6 7 . . 35 6 2 . . . . 9 . 4 . 20 24 Fabricators 18 | . . . . . . . . . . . . . 10 . 2 . . . . 4 . 2 . . . Repair Stations 4 | . . . . . . . . . 2 . . . . . 1 . . . . . . . . 1 . Recycling Units 12 | . . . . . . . . . . . . . 10 . . . . . . . . 2 . . . Scanalyzers 23 | . . . . . . . 15 . 2 . . . . . 2 . . . . . . . . 4 . Garrison Access 10 | . . . . . 2 . 1 . . . . . 3 . 4 . . . . . . . . . . Terminal Hacks 114 | . 4 . 1 . . 3 2 4 1 7 28 . 14 1 . . 1 16 . 5 . 2 . 11 14 Record 43 | . . . 1 . . . . . . 7 11 . . . . . . 15 . . . . . 6 3 Part Schematic 9 | . . . . . . . . . . . 8 . 1 . . . . . . . . . . . . Robot Schematic 6 | . . . . . . . . . . . 6 . . . . . . . . . . . . . . Robot Analysis 3 | . 2 . . . . . . . . . . . . . . . . . . . . 1 . . . Prototype ID Bank 8 | . 1 . . . . . . . 1 . 3 . 1 . . . . . . 1 . . . . 1 Open Door 7 | . . . . . . 1 . 1 . . . . . . . . 1 1 . . . . . 2 1 Branch Access Points 1 | . . . . . . . . . . . . . . . . . . . . 1 . . . . . Emergency Access Points 5 | . . . . . . . . 1 . . . . 1 1 . . . . . . . . . 1 1 Terminal Index 1 | . . . . . . . . . . . . . . . . . . . . . . . . . 1 Scanalyzer Index 1 | . . . . . . . . . . . . . 1 . . . . . . . . . . . . Alert Level 2 | . . . . . . . . . . . . . 1 . . . . . . . . . . 1 . Unreport Threat 1 | . . . . . . . . . . . . . . . . . . . . . . 1 . . . Locate Traps 8 | . . . . . . . 1 . . . . . 4 . . . . . . 1 . . . 1 1 Maintenance Status 1 | . . . . . . . . . . . . . . . . . . . . . . . . . 1 Recall Reinforcements 1 | . . . . . . . . . . . . . 1 . . . . . . . . . . . . Hauler Manifests 2 | . . . . . . . . . . . . . 2 . . . . . . . . . . . . Zone Layout 10 | . 1 . . . . . 1 . . . . . 2 . . . . . . 2 . . . . 4 Garrison Registry 1 | . . . . . . 1 . . . . . . . . . . . . . . . . . . . Patrol Navigation 2 | . . . . . . 1 . 1 . . . . . . . . . . . . . . . . . Security Stations 1 | . . . . . . . . 1 . . . . . . . . . . . . . . . . . Activate Exoskeleton 1 | . . . . . . . . . . . . . . . . . . . . . . . . . 1 Fabricator Hacks 6 | . . . . . . . . . . . . . 5 . 1 . . . . . . . . . . Network Status 2 | . . . . . . . . . . . . . 1 . 1 . . . . . . . . . . Load Schematic 1 | . . . . . . . . . . . . . 1 . . . . . . . . . . . . Build 3 | . . . . . . . . . . . . . 3 . . . . . . . . . . . . Repair Station Hacks 2 | . . . . . . . . . 2 . . . . . . . . . . . . . . . . Scan Component 1 | . . . . . . . . . 1 . . . . . . . . . . . . . . . . Repair 1 | . . . . . . . . . 1 . . . . . . . . . . . . . . . . Recycling Unit Hacks 2 | . . . . . . . . . . . . . 1 . . . . . . . . 1 . . . Report Inventory 2 | . . . . . . . . . . . . . 1 . . . . . . . . 1 . . . Scanalyzer 19 | . . . . . . . 13 . 2 . . . . . 2 . . . . . . . . 2 . Insert Component 10 | . . . . . . . 6 . 1 . . . . . 1 . . . . . . . . 2 . Analyze 9 | . . . . . . . 7 . 1 . . . . . 1 . . . . . . . . . . Garrison Access Hacks 4 | . . . . . 1 . 1 . . . . . 1 . 1 . . . . . . . . . . Unlock Access 3 | . . . . . 1 . 1 . . . . . 1 . . . . . . . . . . . . Seal Access 1 | . . . . . . . . . . . . . . . 1 . . . . . . . . . . Unauthorized Hacks 19 | . 1 . . . . . 2 . 2 . . . 8 . 1 . . . . 1 . . . 1 3 Terminals 14 | . 1 . . . . . 1 . 2 . . . 5 . . . . . . 1 . . . 1 3 Track 2 | . . . . . . . . . . . . . 1 . . . . . . . . . . . 1 Botnet 10 | . 1 . . . . . 1 . 2 . . . 3 . . . . . . . . . . 1 2 Disrupt 2 | . . . . . . . . . . . . . 1 . . . . . . 1 . . . . . Fabricators 1 | . . . . . . . . . . . . . 1 . . . . . . . . . . . . Haulers 1 | . . . . . . . . . . . . . 1 . . . . . . . . . . . . Repair Stations 1 | . . . . . . . . . . . . . . . 1 . . . . . . . . . . Mechanics 1 | . . . . . . . . . . . . . . . 1 . . . . . . . . . . Recycling Units 2 | . . . . . . . . . . . . . 2 . . . . . . . . . . . . Monitor 1 | . . . . . . . . . . . . . 1 . . . . . . . . . . . . Recyclers 1 | . . . . . . . . . . . . . 1 . . . . . . . . . . . . Scanalyzers 1 | . . . . . . . 1 . . . . . . . . . . . . . . . . . . Extract 1 | . . . . . . . 1 . . . . . . . . . . . . . . . . . . Garrison Access . | . . . . . . . . . . . . . . . . . . . . . . . . . . Data Cores Recovered 1 | . . . . . . . . . . . . . . . . . . . . 1 . . . . . Used . | . . . . . . . . . . . . . . . . . . . . . . . . . . Hacking Detections 71 | . 3 . . . . 4 4 3 4 1 . . 20 2 4 . . . . 4 . 4 . 10 8 Full Trace Events 8 | . 1 . . . . 2 1 . . 1 . . 1 . . . . . . 2 . . . . . Feedback Events . | . . . . . . . . . . . . . . . . . . . . . . . . . . Feedback Blocked . | . . . . . . . . . . . . . . . . . . . . . . . . . . Robot Schematics Acquired 10 | . . . . . . . . . . . 6 . . . . . . . . . . . . 4 . Robots Built . | . . . . . . . . . . . . . . . . . . . . . . . . . . Authchips . | . . . . . . . . . . . . . . . . . . . . . . . . . . Time . | . . . . . . . . . . . . . . . . . . . . . . . . . . Total Robot Build Rating . | . . . . . . . . . . . . . . . . . . . . . . . . . . Part Schematics Acquired 31 | . . . . . . . 10 . 1 . 8 . 1 . 1 . . . . . . . . 10 . Parts Built 3 | . . . . . . . . . . . . . 3 . . . . . . . . . . . . Authchips . | . . . . . . . . . . . . . . . . . . . . . . . . . . Time 374 | . . . . . . . . . . . . . 374 . . . . . . . . . . . . Total Part Build Rating 19 | . . . . . . . . . . . . . 19 . . . . . . . . . . . . Parts Repaired 1 | . . . . . . . . . 1 . . . . . . . . . . . . . . . . Time 44 | . . . . . . . . . 44 . . . . . . . . . . . . . . . . Parts Recycled . | . . . . . . . . . . . . . . . . . . . . . . . . . . Recycled Matter . | . . . . . . . . . . . . . . . . . . . . . . . . . . Retrieved Matter . | . . . . . . . . . . . . . . . . . . . . . . . . . . Retrieved Components . | . . . . . . . . . . . . . . . . . . . . . . . . . . Parts Scanalyzed 9 | . . . . . . . 6 . 1 . . . . . 1 . . . . . . . . 1 . Part Schematics Acquired 8 | . . . . . . . 6 . 1 . . . . . 1 . . . . . . . . . . Parts Damaged 2 | . . . . . . . 1 . . . . . . . . . . . . . . . . 1 . Bothacking | -11 -10 -10 -10 -9 -8 -8 -8 -8 -7 -7 -7 -6 -6 -6 -5 -5 -5 -5 -4 -4 -4 -3 -2 -2 -2 ------------ Run | Yrd Mat Min Exi Min Mat Gar Mat Gar Fac Low Dat Pro Fac Gar Fac Upp Upp War Pro Fac Upp Res Res Qua Sec Used RIF Installer . | . . . . . . . . . . . . . . . . . . . . . . . . . . Robots Hacked . | . . . . . . . . . . . . . . . . . . . . . . . . . . Non-combat . | . . . . . . . . . . . . . . . . . . . . . . . . . . Combat . | . . . . . . . . . . . . . . . . . . . . . . . . . . Robot Hacks Applied . | . . . . . . . . . . . . . . . . . . . . . . . . . . Relay Couplers Released 68 | . . . . . . 20 . 13 . . . . . 30 3 . . . . . . . 2 . . Machine Destruction 64 | . . . . . . 20 . 13 . . . . . 26 3 . . . . . . . 2 . . Programmers 4 | . . . . . . . . . . . . . . 4 . . . . . . . . . . . Fabnet Peak Effective % . | . . . . . . . . . . . . . . . . . . . . . . . . . . Robots Rewired 28 | . . . 4 . . 18 . . . . . . . 6 . . . . . . . . . . . Allies Hacked 1 | . . . . . . . . . . . . . . 1 . . . . . . . . . . . Hacks Repelled . | . . . . . . . . . . . . . . . . . . . . . . . . . . Allies | -11 -10 -10 -10 -9 -8 -8 -8 -8 -7 -7 -7 -6 -6 -6 -5 -5 -5 -5 -4 -4 -4 -3 -2 -2 -2 -------- Run | Yrd Mat Min Exi Min Mat Gar Mat Gar Fac Low Dat Pro Fac Gar Fac Upp Upp War Pro Fac Upp Res Res Qua Sec Total Allies 34 | . . 3 4 . . 18 . 1 . . . . . 6 . . . . . . 1 . . . 1 Largest Group 25 | . . 3 7 7 7 25 24 18 4 . . . . 3 . . . . . . 1 . . . 1 Highest-Rated Group 1204 | . . 40 98 98 98 458 443 325 95 . . . . 92 . . . . . . 146 . . . 1204 Highest-Rated Ally 1204 | . . 16 21 21 21 40 40 39 39 . . . . 46 . . . . . . 146 . . . 1204 Initial Warlord ECA Mod 369 | . . . . . . . 10 10 17 17 17 16 16 16 24 24 24 24 23 23 23 22 21 21 21 Total Orders 2 | . . . . . . . . . . . . . . . . . . 1 1 . . . . . . RETURN 2 | . . . . . . . . . . . . . . . . . . 1 1 . . . . . . Ally Attacks 293 | . . . . 2 . . 40 126 40 . . . . 12 . . . . . . 4 . . . 69 Total Damage 9536 | . . . . 22 . . 607 2132 676 . . . . 251 . . . . . . 287 . . . 5561 Kills 59 | . . . . 1 . . 8 26 7 . . . . . . . . . . . 2 . . . 15 Allies Corrupted 2 | . . . . . . . . . . . . . . 2 . . . . . . . . . . . Allies Melted 5 | . . . . . . . . 2 . . . . . . . . . 1 . . . . 2 . . Intel | -11 -10 -10 -10 -9 -8 -8 -8 -8 -7 -7 -7 -6 -6 -6 -5 -5 -5 -5 -4 -4 -4 -3 -2 -2 -2 ------- Run | Yrd Mat Min Exi Min Mat Gar Mat Gar Fac Low Dat Pro Fac Gar Fac Upp Upp War Pro Fac Upp Res Res Qua Sec Active Infowar (turns) 15618 | . . . . . 36 1166 408 1474 875 296 . . 2969 1892 1350 1220 934 768 . 1 . . 512 696 1021 Optics 9133 | . . . . . . . . . . . . . 2969 1892 1350 1220 934 768 . . . . . . . IFF 649 | . . . . . . . . . . . . . . . . 649 . . . . . . . . . Structural 3681 | . . . . . . . . . . . . . 1675 . 839 655 . . . . . . 512 . . Jamming 10465 | . . . . . 36 1166 408 1474 875 296 . . 2108 1892 492 . . . . 1 . . . 696 1021 Robot Analysis Total 3 | . 2 . . . . . . . . . . . . . . . . . . . . 1 . . . Derelict Logs Recovered 8 | . . 1 . 1 . . . . . 1 . 1 . . . 2 . . 2 . . . . . . Drone Launches 10 | . . . . . . . . . . . . . . . . . 1 3 3 3 . . . . . Drone Recoveries 10 | . . . . . . . . . . . . . . . . . 1 3 3 3 . . . . . Exploration | -11 -10 -10 -10 -9 -8 -8 -8 -8 -7 -7 -7 -6 -6 -6 -5 -5 -5 -5 -4 -4 -4 -3 -2 -2 -2 ------------- Run | Yrd Mat Min Exi Min Mat Gar Mat Gar Fac Low Dat Pro Fac Gar Fac Upp Upp War Pro Fac Upp Res Res Qua Sec Turns Passed 21804 | 52 187 109 434 392 39 1166 408 1474 875 338 156 446 3034 1892 1350 1220 934 783 172 462 65 861 1656 1877 1422 Spaces Moved 13101 | 40 156 99 397 353 23 771 231 789 511 217 93 316 1720 985 583 516 441 436 319 667 31 745 959 805 898 Core 460 | 3 . . . . . . . . . . . . . . . . . . . 23 . . . . 434 Treads 2536 | . . . . . . . . . . . . . 344 . . . . . . 1 . . 922 805 464 Legs 358 | . . . . . . . . . . . . . . . . . . . . . 24 334 . . . Wheels 8294 | 37 156 99 397 353 23 771 231 789 511 217 93 316 1376 985 583 516 441 400 . . . . . . . Hover 156 | . . . . . . . . . . . . . . . . . . . . 149 7 . . . . Flight 1297 | . . . . . . . . . . . . . . . . . . 36 319 494 . 411 37 . . Fastest Speed 21 | 50 90 90 90 105 105 105 120 120 120 120 120 125 105 150 145 160 175 32 32 29 120 21 24 145 50 Average Speed 130 | 87 90 90 95 105 105 111 120 157 128 120 126 125 139 158 178 218 194 157 34 39 120 66 153 161 103 Slowest Speed 360 | 90 90 90 105 105 105 120 120 160 160 120 170 125 165 175 275 255 255 270 35 250 120 120 166 247 360 Overloaded Moves 91 | . . . . . . . . . . . . . . . . . . 14 14 63 . . . . . Propulsion Burnouts . | . . . . . . . . . . . . . . . . . . . . . . . . . . Robots Hopped 15 | . . . . . . . . . . . . . . . . . . . . 5 . 10 . . . Potential Cave-ins 2 | . . . . . . . . . . . . . . . . . . 2 . . . . . . . Cave-ins Triggered . | . . . . . . . . . . . . . . . . . . . . . . . . . . Teleports 3 | . . . . . . . . . . . . . . . . . . . . . . . . 2 1 Exploration Rate (%) 48 | 4 37 32 88 76 3 98 34 90 15 24 78 53 54 93 23 70 59 68 47 26 1 19 25 89 65 Regions Visited 25 Branch Regions 13 Pre-discovered Areas 4 | . . . 1 . . . . . . 1 1 . . . . 1 . . . . . . . . . Known Exits Taken 8 | . . . . . 1 . 1 . 1 . . . 1 . 1 . . . . 1 . 1 1 . . Unknown Exits Taken 14 | 1 1 1 1 1 . . . . . 1 1 1 . . . 1 1 1 1 . 1 . . 1 . Scrap Searched 17 | . . 2 . 2 . . . . . 1 . 3 . . . 4 3 . 2 . . . . . . Spaces Dug 75 | . . . . . . . . 14 9 . . . 5 5 10 13 . . . 4 . 5 3 6 1 Terrain Destroyed 1035 | . . . . . . 72 2 14 108 25 20 6 102 114 153 33 28 84 . 57 . 34 38 70 75 Melee 40 | . . . . . . . . 14 . . . . 3 4 4 . . . . 4 . 5 . 6 . Projectile 270 | . . . . . . . 2 . . . . 6 24 20 70 33 28 27 . . . 4 6 23 27 AOE 724 | . . . . . . 72 . . 108 25 20 . 75 90 79 . . 57 . 53 . 24 32 41 48 Terrain Rammed . | . . . . . . . . . . . . . . . . . . . . . . . . . . Walls Destroyed . | . . . . . . . . . . . . . . . . . . . . . . . . . . Machines Disabled . | . . . . . . . . . . . . . . . . . . . . . . . . . . Actions | -11 -10 -10 -10 -9 -8 -8 -8 -8 -7 -7 -7 -6 -6 -6 -5 -5 -5 -5 -4 -4 -4 -3 -2 -2 -2 --------- Run | Yrd Mat Min Exi Min Mat Gar Mat Gar Fac Low Dat Pro Fac Gar Fac Upp Upp War Pro Fac Upp Res Res Qua Sec Total 16162 | 57 174 118 446 372 37 1058 340 954 666 254 121 337 2110 1200 724 563 492 517 378 796 56 959 1115 1139 1179 Wait 951 | 2 . 19 11 11 10 57 84 52 93 5 1 2 129 3 26 4 28 7 55 45 1 85 37 103 81 Move 13045 | 39 155 98 396 352 22 770 230 787 510 216 92 315 1719 984 582 515 440 435 318 656 30 724 958 804 898 Hop 15 | . . . . . . . . . . . . . . . . . . . . 5 . 10 . . . Pick Up 276 | 10 4 1 5 5 1 9 4 . 9 5 1 4 50 12 19 10 2 14 2 11 2 19 32 23 22 Fast Attach 109 | . . . . . . 2 2 . 2 . . . 13 1 1 . 5 9 2 12 11 9 16 19 5 Attach 169 | 6 1 . . . 3 . . 1 5 2 9 1 22 7 16 8 . 6 1 12 3 11 12 14 29 Detach 27 | . . . . . . . . . . . 4 . 1 2 . . . 4 . 2 1 1 5 6 1 Swap 124 | . . . 1 1 1 6 3 3 11 4 3 . 24 10 8 5 1 11 . . 2 13 5 7 5 Drop 206 | . . . 1 2 . 12 6 . 5 2 3 1 28 13 4 . 6 20 . 4 6 21 24 39 9 Fire 715 | . 14 . 2 1 . 11 10 13 31 20 8 14 115 57 62 21 10 11 . 21 . 56 26 98 114 Melee 146 | . . . . . . 4 1 42 . . . . 9 25 6 . . . . 28 . 7 . 19 5 Ram . | . . . . . . . . . . . . . . . . . . . . . . . . . . Kick 3 | . . . . . . . . . . . . . . . . . . . . . . 3 . . . Crush 5 | . . . . . . . . . . . . . . . . . . . . . . . . 5 . Escape Stasis 122 | . . . . . . . . 56 . . . . . 56 . . . . . . . . . . 10 Rewire 249 | . . . 30 . . 187 . . . . . . . 30 . . . . . . . . . 2 . Trap . | . . . . . . . . . . . . . . . . . . . . . . . . . . Miscellaneous . | . . . . . . . . . . . . . . . . . . . . . . . . . . Route ------- -11/Scrapyard -10/Materials (discovered 2 exits: [*Min x2]) -10/Mines -10/Exiles (discovered 2 exits: [*Min x2]) -9/Mines -8/Materials -8/Garrison (discovered 4 exits: *Mat x4) -8/Materials (discovered 2 exits: *Fac / Gar) -8/Garrison (discovered 3 exits: *Fac x3) -7/Factory -7/Lower Caves (discovered 2 exits: Low / *Dat) -7/Data Miner -6/Proximity Caves -6/Factory (discovered 5 exits: *Fac x4 / Gar) -6/Garrison (discovered 3 exits: *Fac x3) -5/Factory (discovered 2 exits: *Upp x2) -5/Upper Caves -5/Upper Caves (discovered 2 exits: *Fac / *War) -5/Warlord -4/Proximity Caves -4/Factory (discovered 2 exits: *Upp x2) -4/Upper Caves -3/Research (discovered 3 exits: *Res x2 / Arm) -2/Research -2/Quarantine (discovered 3 exits: [*Acc] / *Sec / [*Frg]) -2/Section 7 (discovered 1 exit: [Acc]) History --------- Turn | Location | Event 12 | -11/Scrapyard | Discovered new exit (range 16) 53 | -11/Scrapyard | Entered Materials 160 | -10/Materials | Discovered new exit (range 12) 182 | -10/Materials | Discovered new exit (range 8) 240 | -10/Materials | Entered Mines 271 | -10/Mines | Learned Materials garrison access intel 288 | -10/Mines | Assisted by bots powering up and referring to "LRC-V3" 310 | -10/Mines | Build established: Mutant 325 | -10/Mines | Deemed a non-threat by the Exiles lab entrance 325 | -10/Mines | Discovered new exit (range 5) 349 | -10/Mines | Entered Exiles 349 | -10/Exiles | Found Exiles lab destroyed 349 | -10/Exiles | Accompanied by 3 allies 361 | -10/Exiles | Discovered new exit (range 15) 527 | -10/Exiles | Learned location of Zion (-6) 720 | -10/Exiles | Build established: Commander-Mutant 762 | -10/Exiles | Discovered new exit (range 10) 783 | -10/Exiles | Entered Mines 783 | -9/Mines | Accompanied by 7 allies 865 | -9/Mines | Learned Materials emergency access door positions 1135 | -9/Mines | Discovered new exit (range 12) 1137 | -9/Mines | Received a Rocket Launcher from a helpful Derelict 1175 | -9/Mines | Entered Materials 1175 | -8/Materials | Accompanied by 7 allies 1175 | -8/Materials | Evolved 4 slots: Utility x3, Weapon x1 1177 | -8/Materials | Loaded intel: 1 garrison access location 1198 | -8/Materials | Identified exit to Garrison 1214 | -8/Materials | Entered Garrison 1214 | -8/Garrison | Discovered recently destroyed garrison 1214 | -8/Garrison | Accompanied by 7 allies 1234 | -8/Garrison | Garrison Relay disabled 1385 | -8/Garrison | Discovered new exit (range 15) 1417 | -8/Garrison | Phase Generator disabled 1469 | -8/Garrison | Build established: Commander-Tank 1475 | -8/Garrison | Garrison Relay disabled 1499 | -8/Garrison | Discovered new exit (range 5) 1676 | -8/Garrison | Discovered new exit (range 13) 1690 | -8/Garrison | Discovered new exit (range 10) 1690 | -8/Garrison | Discovered new exit (range 60) 1690 | -8/Garrison | Discovered new exit (range 65) 1690 | -8/Garrison | Discovered new exit (range 33) 1771 | -8/Garrison | Garrison Relay disabled 1905 | -8/Garrison | Garrison Relay disabled 2042 | -8/Garrison | Garrison Relay disabled 2092 | -8/Garrison | Build established: Commander-Mutant 2380 | -8/Garrison | Entered Materials 2380 | -8/Materials | Accompanied by 24 allies 2575 | -8/Materials | Discovered new exit (range 6) 2586 | -8/Materials | Lost 4 allies 2693 | -8/Materials | Build established: Commander-Tank 2705 | -8/Materials | Identified exit to Garrison 2788 | -8/Materials | Entered Garrison 2788 | -8/Garrison | Accompanied by 18 allies 2828 | -8/Garrison | Triggered checkpoint 2830 | -8/Garrison | Garrison Relay disabled 2864 | -8/Garrison | P-60 Hacker assimilated allied Marksman 3a 2867 | -8/Garrison | P-60 Hacker assimilated allied Bruiser 3a 3174 | -8/Garrison | Triggered checkpoint 3189 | -8/Garrison | Triggered checkpoint 3220 | -8/Garrison | Triggered checkpoint 3232 | -8/Garrison | Lost 6 allies 3259 | -8/Garrison | Garrison Relay disabled 3287 | -8/Garrison | Discovered new exit (range 9) 3328 | -8/Garrison | Build established: Commander-Mutant 3452 | -8/Garrison | Triggered checkpoint 3643 | -8/Garrison | Rescued a captive Derelict 3658 | -8/Garrison | Triggered checkpoint 3721 | -8/Garrison | Garrison Relay disabled 3790 | -8/Garrison | Discovered new exit (range 12) 3944 | -8/Garrison | Discovered new exit (range 8) 3973 | -8/Garrison | Learned Factory security intel 4012 | -8/Garrison | Triggered checkpoint 4068 | -8/Garrison | Lost 5 allies 4074 | -8/Garrison | Garrison Relay disabled 4129 | -8/Garrison | Attempted to access garrison exit controls, blocked by remote lockdown 4262 | -8/Garrison | Entered Factory 4262 | -7/Factory | Accompanied by 4 allies 4262 | -7/Factory | Evolved 2 slots: Utility x2 4582 | -7/Factory | Build established: Tank 4662 | -7/Factory | First assault squad dispatched 4786 | -7/Factory | Lost 4 allies 4921 | -7/Factory | Repaired Hrd. Heavy Armor Plating 4993 | -7/Factory | Discovered new exit (range 5) 4999 | -7/Factory | Identified exit to Lower Caves 5137 | -7/Factory | Entered Lower Caves 5169 | -7/Lower Caves | Attracted the attention of an 0b10 base 5245 | -7/Lower Caves | Met a Warlord Commander 5246 | -7/Lower Caves | Learned location of Warlord (-5) 5247 | -7/Lower Caves | Warlord Commander delivered Encrypted Comm Array 5259 | -7/Lower Caves | Found Encrypted Comm Array 5270 | -7/Lower Caves | Learned Extension trap positions 5270 | -7/Lower Caves | Learned Factory security intel 5326 | -7/Lower Caves | Identified exit to Lower Caves 5435 | -7/Lower Caves | A Derelict revealed a hidden shortcut to meet someone special 5475 | -7/Lower Caves | Entered Data Miner 5475 | -7/Data Miner | Discovered new exit (range 6) 5498 | -7/Data Miner | Met Data Miner 5521 | -7/Data Miner | Learned location of Section 7 (-2) 5521 | -7/Data Miner | Acquired the access code to Warlord's prototype stash 5547 | -7/Data Miner | Received God Mode back door access code from Data Miner 5557 | -7/Data Miner | Data Conduit disabled 5616 | -7/Data Miner | Lost 4 parts (1p1n2w) 5631 | -7/Data Miner | Entered Proximity Caves 5638 | -6/Proximity Caves | Learned location of 1 exit from Factory 5680 | -6/Proximity Caves | Attracted the attention of an 0b10 checkpoint 5920 | -6/Proximity Caves | Discovered new exit (range 15) 6077 | -6/Proximity Caves | Entered Factory 6077 | -6/Factory | Evolved 2 slots: Utility x2 6078 | -6/Factory | Identified exit to Factory 6460 | -6/Factory | Lost 3 parts (1p1u1w) 6513 | -6/Factory | Lost 4 parts (2n1u1w) 6570 | -6/Factory | Allied Derelicts emerged from ambush trap array 6638 | -6/Factory | Lost 5 parts (1n2u2w) 6788 | -6/Factory | Lost 3 parts (1p1n1u) 6846 | -6/Factory | Build established: Scavenger-Gunner 7132 | -6/Factory | Discovered exit to Factory (range 4) 7209 | -6/Factory | Fabricated Imp. Coolant Injector? 7243 | -6/Factory | Lost 3 parts (2n1w) 7820 | -6/Factory | Discovered exit to Factory (range 12) 7836 | -6/Factory | Build established: Infiltrator-Mutant 8027 | -6/Factory | Fabricated Adv. Variable Charge Gun (x1) 8233 | -6/Factory | Build established: Scavenger-Gunner 8572 | -6/Factory | Core integrity fell below 50% 8949 | -6/Factory | Spotted B-75 Beast 9020 | -6/Factory | Discovered exit to Factory (range 11) 9102 | -6/Factory | Identified exit to Garrison 9111 | -6/Factory | Entered Garrison 9111 | -6/Garrison | Warlord forces raided the area 9183 | -6/Garrison | Garrison Relay disabled 9233 | -6/Garrison | Triggered checkpoint 9255 | -6/Garrison | Triggered checkpoint 9266 | -6/Garrison | Triggered checkpoint 9291 | -6/Garrison | Triggered checkpoint 9291 | -6/Garrison | Garrison Relay disabled 9367 | -6/Garrison | Triggered checkpoint 9528 | -6/Garrison | Lost 4 allies 9560 | -6/Garrison | Discovered exit to Factory (range 12) 9577 | -6/Garrison | Triggered checkpoint 9926 | -6/Garrison | Discovered exit to Factory (range 12) 10030 | -6/Garrison | Phase Generator disabled 10145 | -6/Garrison | Build established: Mutant 10200 | -6/Garrison | Garrison Relay disabled 10260 | -6/Garrison | Lost 3 allies 10391 | -6/Garrison | Triggered checkpoint 10439 | -6/Garrison | Garrison Relay disabled 10473 | -6/Garrison | Discovered exit to Factory (range 11) 10683 | -6/Garrison | Triggered checkpoint 10727 | -6/Garrison | Garrison Relay disabled 10742 | -6/Garrison | Garrison Relay disabled 11003 | -6/Garrison | Entered Factory 11003 | -5/Factory | Evolved 2 slots: Power x1, Weapon x1 11004 | -5/Factory | Identified exit to Upper Caves 11258 | -5/Factory | Destroyed 9 combat bots 11303 | -5/Factory | First assault squad dispatched 11337 | -5/Factory | Lost 4 parts (1p1u2w) 11844 | -5/Factory | Build established: Scavenger-Gunner 11871 | -5/Factory | Garrison activated, responded to threat 12107 | -5/Factory | Destroyed 9 combat bots 12112 | -5/Factory | Lost 5 parts (1p1n2u1w) 12278 | -5/Factory | Spotted B-75 Beast 12353 | -5/Factory | Entered Upper Caves 12612 | -5/Upper Caves | Attracted the attention of an 0b10 checkpoint 12656 | -5/Upper Caves | Spotted B-75 Beast 12678 | -5/Upper Caves | Destroyed B-75 Beast 13400 | -5/Upper Caves | Discovered new exit (range 2) 13573 | -5/Upper Caves | Entered another Upper Caves area 13704 | -5/Upper Caves | Discovered new exit (range 12) 14258 | -5/Upper Caves | Discovered new exit (range 20) 14390 | -5/Upper Caves | Attracted the attention of an 0b10 checkpoint 14507 | -5/Upper Caves | Entered Warlord 14731 | -5/Warlord | Met Warlord 14756 | -5/Warlord | Warlord's base attacked by MAIN.C 14782 | -5/Warlord | Learned Research trap positions 14783 | -5/Warlord | Learned 4 Research zone layouts 14783 | -5/Warlord | Learned 4 Command zone layouts 14785 | -5/Warlord | Learned Armory garrison access intel 14785 | -5/Warlord | Learned Research fabricator intel 14785 | -5/Warlord | Learned Research recycling unit intel 14785 | -5/Warlord | Learned Research scanalyzer intel 14815 | -5/Warlord | Build established: Scavenger-Mutant 14956 | -5/Warlord | Found Prototype Launcher 14956 | -5/Warlord | Identified Vortex Catalyst Activator 14965 | -5/Warlord | Found Prototype Energy Cannon 14966 | -5/Warlord | Identified Vortex Driver 14968 | -5/Warlord | Found Prototype Energy Gun 14969 | -5/Warlord | Identified Vortex Rail 14973 | -5/Warlord | Found Vortex Rail 14979 | -5/Warlord | Found Vortex Driver 15037 | -5/Warlord | Opened Warlord's prototype stash 15044 | -5/Warlord | Found Prototype Reactor 15044 | -5/Warlord | Identified Vortex Chain Reactor 15074 | -5/Warlord | Found Prototype Hackware 15079 | -5/Warlord | Found Prototype Processor 15079 | -5/Warlord | Identified Spectral Analyzer 15083 | -5/Warlord | Found Prototype Device 15083 | -5/Warlord | Identified System Purifier 15106 | -5/Warlord | Warlord forces counterattacked 15186 | -5/Warlord | Lost 3 allies 15192 | -5/Warlord | Spotted Executioner 15200 | -5/Warlord | Found Prototype Device 15204 | -5/Warlord | Identified Adv. Kinecellerator 15206 | -5/Warlord | Spotted Striker 15209 | -5/Warlord | Spotted Executioner 15218 | -5/Warlord | Spotted Striker 15223 | -5/Warlord | Core integrity fell below 50% 15226 | -5/Warlord | Destroyed Striker 15237 | -5/Warlord | Destroyed Striker 15252 | -5/Warlord | Lost 10 allies 15256 | -5/Warlord | Spotted Executioner 15257 | -5/Warlord | Lost 3 parts (2n1w) 15258 | -5/Warlord | Destroyed 8 combat bots 15259 | -5/Warlord | Spotted Striker 15259 | -5/Warlord | Spotted Striker 15271 | -5/Warlord | Found Prototype Processor 15271 | -5/Warlord | Identified Exp. Core Analyzer 15275 | -5/Warlord | Released all parts (8) 15276 | -5/Warlord | Core integrity fell below 20% 15278 | -5/Warlord | Discovered new exit (range 15) 15281 | -5/Warlord | Identified System Mapper 15290 | -5/Warlord | Entered Proximity Caves 15305 | -4/Proximity Caves | Lost 5 parts (1p1n1u2w) 15318 | -4/Proximity Caves | Lost 3 allies 15407 | -4/Proximity Caves | Learned Research interactive machine intel 15448 | -4/Proximity Caves | Discovered new exit (range 7) 15457 | -4/Proximity Caves | Learned Research emergency access door positions 15460 | -4/Proximity Caves | Attracted the attention of an 0b10 checkpoint 15462 | -4/Proximity Caves | Entered Factory 15462 | -4/Factory | Evolved 2 slots: Propulsion x2 15519 | -4/Factory | Build established: Hacker-Mutant 15667 | -4/Factory | Lost 6 parts (3n2u1w) 15728 | -4/Factory | Identified exit to Upper Caves 15745 | -4/Factory | Core integrity fell below 50% 15822 | -4/Factory | Garrison activated, responded to threat 15896 | -4/Factory | Core integrity fell below 20% 15924 | -4/Factory | Entered Upper Caves 15925 | -4/Upper Caves | NK-0LA showed up to help 15927 | -4/Upper Caves | NK-0LA revealed a hidden path 15940 | -4/Upper Caves | System corruption reached 10% 15955 | -4/Upper Caves | System corruption reached 30% 15989 | -4/Upper Caves | Entered Research 15989 | -3/Research | Evolved 2 slots: Propulsion x2 15990 | -3/Research | Identified exit to Armory 15991 | -3/Research | Identified exit to Research 15992 | -3/Research | Loaded intel: 83 trap records 15994 | -3/Research | Loaded intel: 45 interactive machine locations 15995 | -3/Research | Loaded intel: 4 fabricator locations 15996 | -3/Research | Loaded intel: 5 recycling unit locations 15997 | -3/Research | Loaded intel: 6 scanalyzer locations 16238 | -3/Research | Build established: Scavenger-Gunner 16436 | -3/Research | Found Prototype Device 16440 | -3/Research | Found Prototype Device 16486 | -3/Research | Identified Exp. Thermal Defense Suite (x2) 16635 | -3/Research | Lost 3 parts (1u2w) 16719 | -3/Research | Lost 9 parts (1p3n2u3w) 16775 | -3/Research | Discovered exit to Research (range 15) 16794 | -3/Research | System corruption reached 10% 16850 | -3/Research | Entered another Research area 16850 | -2/Research | Warlord forces began assault on 0b10 16850 | -2/Research | Evolved 2 slots: Utility x2 16861 | -2/Research | Found Gamma Bomb Array 16862 | -2/Research | Met up with Warlord 16863 | -2/Research | Found Prototype Processor 16864 | -2/Research | Identified Exp. Signal Interpreter 16874 | -2/Research | Found Gamma Bomb Array 16875 | -2/Research | Distinguished unit "Smaug Mourners" dispatched to help 16875 | -2/Research | Distinguished unit "Lair Dwellers" dispatched to help 16881 | -2/Research | Lost 4 parts (1n3u) 16960 | -2/Research | Research machine network offline 17007 | -2/Research | Lost 4 allies 17100 | -2/Research | Borebot progress halted 17105 | -2/Research | Found Prototype Protection 17105 | -2/Research | Identified Centrium Heavy Armor Plating 17109 | -2/Research | Found Centrium Heavy Armor Plating 17245 | -2/Research | Spotted B-90 Cyclops 17385 | -2/Research | Build established: Scavenger-Tank 17457 | -2/Research | Borebot progress halted 17473 | -2/Research | Found Prototype Launcher 17474 | -2/Research | Identified Point Singularity Launcher 17477 | -2/Research | Found Point Singularity Launcher 17514 | -2/Research | Found Adv. Kinecellerator 17523 | -2/Research | Discovered new exit (range 13) 17687 | -2/Research | Identified exit to Quarantine 18118 | -2/Research | Spotted Striker 18354 | -2/Research | Given Cave Seal Controls access code 18506 | -2/Research | Entered Quarantine 18519 | -2/Quarantine | Found Alien Slashing Weapon 18519 | -2/Quarantine | Identified Sigix Broadsword 18579 | -2/Quarantine | Garrison activated, responded to threat 18708 | -2/Quarantine | Lost 3 allies 18738 | -2/Quarantine | Spotted Alpha 7 18781 | -2/Quarantine | Destroyed Alpha 7 18820 | -2/Quarantine | Found Alien Launcher 18820 | -2/Quarantine | Identified Sigix Terminator 18965 | -2/Quarantine | Found Alien Artifact 19020 | -2/Quarantine | Identified Subatomic Replicator 19108 | -2/Quarantine | Build established: Mutant 19127 | -2/Quarantine | System corruption reached 10% 19324 | -2/Quarantine | Found Alien Artifact 19325 | -2/Quarantine | Identified Terrabomb 19325 | -2/Quarantine | Used Terrabomb 19420 | -2/Quarantine | Discovered new exit (range 13) 19478 | -2/Quarantine | Found Alien Impact Weapon 19478 | -2/Quarantine | Identified Core Stripper 19539 | -2/Quarantine | Found Alien Artifact 19540 | -2/Quarantine | Identified Dimensional Node Initializer 19540 | -2/Quarantine | Initialized slip node 19548 | -2/Quarantine | Found Alien Artifact 19548 | -2/Quarantine | Identified Transdimensional Reconstructor 19548 | -2/Quarantine | Warped through subspace to slip node 19559 | -2/Quarantine | Found Transdimensional Reconstructor 19562 | -2/Quarantine | Found Transdimensional Reconstructor 19680 | -2/Quarantine | Found Prototype Device 19680 | -2/Quarantine | Identified Exp. Transmission Jammer 19717 | -2/Quarantine | Build established: Tank 19819 | -2/Quarantine | Met incapacitated Sigix Warrior 19819 | -2/Quarantine | Lockdown squad dispatched 19858 | -2/Quarantine | Found Sigix Containment Pod 19901 | -2/Quarantine | Found Alien Artifact 19901 | -2/Quarantine | Identified Phase Armor 20041 | -2/Quarantine | Spotted Lightning 20041 | -2/Quarantine | Spotted Lightning 20043 | -2/Quarantine | Warped through subspace to slip node 20092 | -2/Quarantine | Spotted Fortress 20177 | -2/Quarantine | Destroyed Fortress 20256 | -2/Quarantine | First assault squad dispatched 20374 | -2/Quarantine | Discovered new exit (range 6) 20374 | -2/Quarantine | Discovered new exit (range 7) 20383 | -2/Quarantine | Entered Section 7 20403 | -2/Section 7 | Found Prototype Device 20404 | -2/Section 7 | Identified Exp. Actuator Array 20485 | -2/Section 7 | Found Alien Artifact 20801 | -2/Section 7 | System corruption reached 30% 20982 | -2/Section 7 | Found Alien Artifact 21029 | -2/Section 7 | Spotted B-90 Cyclops 21079 | -2/Section 7 | Destroyed B-90 Cyclops 21152 | -2/Section 7 | Discovered new exit (range 17) 21349 | -2/Section 7 | Spotted Alpha 7 21356 | -2/Section 7 | Spotted Alpha 7 21406 | -2/Section 7 | Destroyed Alpha 7 21423 | -2/Section 7 | Garrison activated, responded to threat 21441 | -2/Section 7 | Warped through subspace 21441 | -2/Section 7 | Spotted B-99 Colossus 21442 | -2/Section 7 | Identified Integrated Mediator 21442 | -2/Section 7 | Installed Integrated Mediator, increased core attachment efficiency 21443 | -2/Section 7 | Identified Spacefold Activator 21465 | -2/Section 7 | Core integrity fell below 50% 21481 | -2/Section 7 | Released all parts (13) 21506 | -2/Section 7 | Lost 13 parts (3n6u4w) 21512 | -2/Section 7 | Found Alien Artifact 21512 | -2/Section 7 | Identified LRC Matter Compressor 21512 | -2/Section 7 | Installed LRC Matter Compressor, increased matter storage capacity (+125) 21516 | -2/Section 7 | Found LRC Matter Compressor 21516 | -2/Section 7 | Installed LRC Matter Compressor, increased matter storage capacity (+125) 21518 | -2/Section 7 | Found Alien Artifact 21518 | -2/Section 7 | Identified LRC Inertial Stabilizer 21518 | -2/Section 7 | Installed LRC Inertial Stabilizer, increased mass support (+10) 21591 | -2/Section 7 | Activated Sigix Exoskeleton 21591 | -2/Section 7 | Unable to understand communications from Sigix Warrior 21605 | -2/Section 7 | Spotted Executioner 21606 | -2/Section 7 | Spotted Executioner 21615 | -2/Section 7 | Allies destroyed Executioner 21623 | -2/Section 7 | Found Exp. Core Analyzer 21625 | -2/Section 7 | Found Prototype Processor 21625 | -2/Section 7 | Allies destroyed Executioner 21626 | -2/Section 7 | Identified Exp. Targeting Computer 21634 | -2/Section 7 | Found Exp. Targeting Computer 21637 | -2/Section 7 | Found Exp. Core Analyzer 21644 | -2/Section 7 | Found Adv. Kinecellerator 21654 | -2/Section 7 | Spotted Striker 21654 | -2/Section 7 | Spotted Striker 21674 | -2/Section 7 | Destroyed Striker 21692 | -2/Section 7 | Allies destroyed Striker 21695 | -2/Section 7 | Used Subatomic Replicator to create Alien Launcher 21697 | -2/Section 7 | Unable to understand communications from Sigix Warrior 21697 | -2/Section 7 | Identified Supercharged Sigix Terminator 21760 | -2/Section 7 | Unable to understand communications from Sigix Warrior 21787 | -2/Section 7 | Spotted Investigator 21788 | -2/Section 7 | Scanned by Researcher 21789 | -2/Section 7 | Intercept squad dispatched 21800 | -2/Section 7 | Spotted Tracker 21801 | -2/Section 7 | Spotted Tracker 21802 | -2/Section 7 | Spotted Executioner 21804 | -2/Section 7 | Core integrity fell below 20% 21805 | -2/Section 7 | Fired Supercharged Sigix Terminator 21805 | -2/Section 7 | Destroyed Investigator 21805 | -2/Section 7 | Destroyed Executioner 21805 | -2/Section 7 | Destroyed Tracker 21805 | -2/Section 7 | Destroyed Tracker 21805 | -2/Section 7 | Destroyed self with Supercharged Sigix Terminator Last Messages --------------- 21804_ Held in stasis. 21804_ Cesium-ion Thruster destroyed. 21805_ Supercharged Sigix Terminator expended. 21805_ Investigator destroyed. 21805_ Destroyed Myomer Leg. 21805_ G-73 Enforcer destroyed. 21805_ Power Cell explodes. 21805_ L2 Monitoring Station destroyed. 21805_ Destroyed Helical Railgun. 21805_ Destroyed Exp. Optical Array. 21805_ Destroyed Enh. Biometal Leg. 21805_ Executioner destroyed. 21805_ Wing Frame damaged. 21805_ Power Cell Monitoring disabled. 21805_ Wing Frame damaged. 21805_ Destroyed Prototype Energy Gun. 21805_ Tracker destroyed. 21805_ Wing Frame damaged. 21805_ Destroyed Prototype Ballistic Gun. 21805_ Tracker destroyed. Map ----- +----------------------------------------------------+ | | | | | ?????????????????????????????????????????????????? | | ?????????????????????????????????????????????????? | | ?????????????????????????????????????????????????? | | ?????????????????????????????????????????????????? | | ?????????????????????????????????????????????????? | | ?????????????????????????????????????????????????? | | ?????????????????????????????????????????????????? | | ?????????????????????????????????###???######????? | | ????????????????????????????""""""""???#T T#????? | | ????????????????????????? """"""""#??" "????? | | ???????????????????????? " #### #????? | | ???????????????????????? ###### | | ?????????????????????????" | | ????????????????????????""" | | ????????????????????????" "" | | ????????????????????????" "" | | ????????????????????????" " "" | | ????????????????????????" "" """" | | ????????????????????????" "??" | | ????????????????????????" "??" | | ????????????????????????" "??" | | ????????????????????????" X "" " | | ????????????????????????" | | ????????????????????????"@ | | ????????????????????????" | | ??????????????????????? | | ????????????????????? | | ??????????????????? " | | ?????????????????? ] """ | | ??????????????????""" " | | ??????????????????? | | ??????????????????? "" " " " ? | | ?????????????????? ?? " " " ?? | | ????????????????? ?? " "?"???? | | ????????????????? ???""?"?????? | | ??????????????????? ?????????????? | | ??????????????? ??? ??????????????? | | ???????????????" ?? ???? ??????????????? | | ???????????????? ?" ????????? | | ????????????????? "" "?" ""??????? | | ?????"??????????? """ "??????? | | ?????"" ?????????? " " ????????" | | ?????"" ?????????? " "????????" | | ???#""" ??????""" " "?"""""""" | | ?? # """""" "?" | | / """"" | | / ]! "" | | / ** " | +----------------------------------------------------+ Best States ------------- Heat Dissipation 87 Coolant Potential 120 Energy Generation 66 Energy Capacity 700 Matter Stores 300 Matter Capacity 550 Sight Range 24 Terrain Scan Density 10 Jamming Range 22 Power Amplification 40 Base Temperature (-) 200 Armor Coverage 1200 Resistance: TH 30 Resistance: EM 20 Point Defense Rating 160 Weapon Cycling 20 Phase Shifting 15 Evasion (%) 70 Targeting Accuracy 24 Target Analysis 11 Core Analysis 12 Armor Integrity Analysis 40 Recoil Reduction 6 Energy Filtering 30 Kinecelleration 50 Offensive Hacking 30 Defensive Hacking 12 Item Schematics ----------------- Core Analyzer | -8/Materials | Scanalyzed Adv. Assault Cannon | -8/Materials | Scanalyzed Ion Engine | -8/Materials | Scanalyzed Imp. Medium Armor Plating | -8/Materials | Scanalyzed Rocket Launcher | -8/Materials | Scanalyzed Lgt. Treads | -8/Materials | Scanalyzed Lrg. Storage Unit | -8/Materials | Extracted Terrain Scan Processor | -8/Materials | Extracted Transport Network Coupler | -8/Materials | Extracted Adv. EMP Blaster | -8/Materials | Extracted Hrd. Heavy Armor Plating | -7/Factory | Scanalyzed Combat Drone Bay | -7/Data Miner | Free Lgt. Regenerative Plating | -7/Data Miner | Free Cld. Cesium-ion Thruster | -7/Data Miner | Free Thermal Defense Suite | -7/Data Miner | Free Force Rifle | -7/Data Miner | Free Gyrokinetic Inverter | -7/Data Miner | Free Imp. Coolant Injector | -7/Data Miner | Free Imp. Arc Projector | -7/Data Miner | Free Adv. Recoil Stabilizer | -6/Factory | Hacked F-cell Engine | -5/Factory | Scanalyzed Com. Mass Driver | -2/Quarantine | Archive Exp. Power Amplifier | -2/Quarantine | Archive Kinetic Spear | -2/Quarantine | Archive Helical Railgun | -2/Quarantine | Archive Neutron Missile Launcher | -2/Quarantine | Archive Electron Diverter | -2/Quarantine | Archive Stealth Drone Bay | -2/Quarantine | Archive Prc. Energy Filter | -2/Quarantine | Archive Cld. Impulse Thruster | -2/Quarantine | Archive Exp. Energy Well | -2/Quarantine | Archive Robot Schematics ------------------ P-60 Hacker | -7/Data Miner | Free W-25 Informer | -7/Data Miner | Free G-47 Trooper | -7/Data Miner | Free H-66 Slayer | -7/Data Miner | Free C-35 Carver | -7/Data Miner | Free Y-54 Guardian | -7/Data Miner | Free S-43 Plague | -2/Quarantine | Archive A-15 Conveyor | -2/Quarantine | Archive C-65 Expert | -2/Quarantine | Archive T-07 Excavator | -2/Quarantine | Archive Fabricated ------------ Imp. Coolant Injector | x2 | -6/Factory Adv. Variable Charge Gun | x1 | -6/Factory | Preloaded Repaired ---------- Hrd. Heavy Armor Plating | 20% | -7/Factory Alien Tech Used ----------------- Sigix Broadsword Sigix Terminator Terrabomb Core Stripper Dimensional Node Initializer Transdimensional Reconstructor Phase Armor Integrated Mediator Spacefold Activator LRC Matter Compressor LRC Inertial Stabilizer Subatomic Replicator Supercharged Sigix Terminator Achievements -------------- Signature Confirmed Turtlemind Z1$+NX3F=JRE3_ZNQR Challenges ------------ None Game ------ Seed VortexTacticalTrap Manual? 0 Play Time 05:13:47 Cumulative 279.1 hours Start 2025.05.15 @ 20:56:25 End 2025.05.17 @ 06:55:23 Sessions 9 Manual Loads 0 Difficulty Rogue Special Mode None Game No. 218 Rogue 209 Adventurer 9 Explorer 0 Win Type - Total 3 Types 2/0/0/1/0/0/0/0/0/0 Lore% 84 Gallery% 72 Achievement% 66 Wizard Run 0 Options --------- Layout 1 ASCII 0 Keyboard 0 Movement Numpad Keybinds 0 Fullscreen 1 Font 24/Smallcaps Map View 50x35 Zoom Use 0% Tactical HUD 1 Map Filters NONE Filters NONE Steam 1 RUN: f033d29b-9de0-4529-a721-088053fd9e5f